[Event "Live Chess"]
[Site "Chess.com"]
[Date "2011.01.29"]
[Round "-"]
[White "amar12345"]
[Black "hipposcottimus"]
[Result "0-1"]
[CurrentPosition "r6R/ppp1k1pp/2n3b1/6K1/2B2P2/q7/6PP/8 w - -"]
[Timezone "UTC"]
[ECO "C31"]
[ECOUrl "https://www.chess.com/openings/Kings-Gambit-Declined-Falkbeer-Blackburne-Attack"]
[UTCDate "2011.01.29"]
[UTCTime "19:51:04"]
[WhiteElo "1556"]
[BlackElo "1584"]
[TimeControl "60"]
[Termination "hipposcottimus won on time"]
[StartTime "19:51:04"]
[EndDate "2011.01.29"]
[EndTime "19:52:54"]
[Link "https://www.chess.com/game/live/92708792"]

1. e4 {[%clk 0:01:00]} 1... e5 {[%clk 0:01:00]} 2. f4 {[%clk 0:00:58.9]} 2... d5 {[%clk 0:00:58.6]} 3. Nf3 {[%clk 0:00:57.9]} 3... dxe4 {[%clk 0:00:55.6]} 4. Nxe5 {[%clk 0:00:57.1]} 4... f6 {[%clk 0:00:54.2]} 5. Nc4 {[%clk 0:00:54.5]} 5... f5 {[%clk 0:00:53.9]} 6. d3 {[%clk 0:00:51.5]} 6... Nf6 {[%clk 0:00:53.5]} 7. Qe2 {[%clk 0:00:47.3]} 7... Be7 {[%clk 0:00:49.5]} 8. Nc3 {[%clk 0:00:46]} 8... O-O {[%clk 0:00:47.6]} 9. dxe4 {[%clk 0:00:44.9]} 9... fxe4 {[%clk 0:00:46.2]} 10. Nxe4 {[%clk 0:00:43.7]} 10... Bb4+ {[%clk 0:00:43.9]} 11. Bd2 {[%clk 0:00:41.9]} 11... Re8 {[%clk 0:00:43.6]} 12. Bxb4 {[%clk 0:00:39.4]} 12... Rxe4 {[%clk 0:00:40.8]} 13. Ne3 {[%clk 0:00:38.4]} 13... Ng4 {[%clk 0:00:38.3]} 14. Qf3 {[%clk 0:00:32.2]} 14... Rxe3+ {[%clk 0:00:36.7]} 15. Qxe3 {[%clk 0:00:30.4]} 15... Nxe3 {[%clk 0:00:35.6]} 16. Be2 {[%clk 0:00:29.3]} 16... Nxc2+ {[%clk 0:00:34.3]} 17. Kf2 {[%clk 0:00:27.8]} 17... Nxa1 {[%clk 0:00:33.4]} 18. Rxa1 {[%clk 0:00:25.7]} 18... Qd2 {[%clk 0:00:33]} 19. Rd1 {[%clk 0:00:24.4]} 19... Qxb4 {[%clk 0:00:31.6]} 20. Rd8+ {[%clk 0:00:22.7]} 20... Kf7 {[%clk 0:00:30.9]} 21. a3 {[%clk 0:00:21.2]} 21... Qxb2 {[%clk 0:00:29.3]} 22. Kg3 {[%clk 0:00:18.1]} 22... Nc6 {[%clk 0:00:28.8]} 23. Bc4+ {[%clk 0:00:09.7]} 23... Ke7 {[%clk 0:00:26.4]} 24. Rh8 {[%clk 0:00:07.2]} 24... Qxa3+ {[%clk 0:00:25.3]} 25. Kh4 {[%clk 0:00:02.2]} 25... Bf5 {[%clk 0:00:24.7]} 26. Kg5 {[%clk 0:00:00.9]} 26... Bg6 {[%clk 0:00:23]} 0-1

[Event "Live Chess"]
[Site "Chess.com"]
[Date "2011.01.29"]
[Round "-"]
[White "Sak_River"]
[Black "hipposcottimus"]
[Result "0-1"]
[CurrentPosition "3rr1k1/ppR3pp/5p2/8/6bP/1P2B1P1/PP3P2/6K1 w - -"]
[Timezone "UTC"]
[ECO "C57"]
[ECOUrl "https://www.chess.com/openings/Italian-Game-Knight-Attack-Polerio-Defense"]
[UTCDate "2011.01.29"]
[UTCTime "19:48:49"]
[WhiteElo "1538"]
[BlackElo "1576"]
[TimeControl "60"]
[Termination "hipposcottimus won on time"]
[StartTime "19:48:49"]
[EndDate "2011.01.29"]
[EndTime "19:50:45"]
[Link "https://www.chess.com/game/live/92708105"]

1. e4 {[%clk 0:01:00]} 1... e5 {[%clk 0:01:00]} 2. Nf3 {[%clk 0:00:59.9]} 2... Nc6 {[%clk 0:00:59.4]} 3. Bc4 {[%clk 0:00:59.3]} 3... Nf6 {[%clk 0:00:59.1]} 4. Ng5 {[%clk 0:00:58.6]} 4... d5 {[%clk 0:00:58.7]} 5. exd5 {[%clk 0:00:56.7]} 5... Na5 {[%clk 0:00:58.4]} 6. Bb3 {[%clk 0:00:51.9]} 6... Nxb3 {[%clk 0:00:56.7]} 7. cxb3 {[%clk 0:00:51.8]} 7... Nxd5 {[%clk 0:00:56.2]} 8. Qf3 {[%clk 0:00:49.8]} 8... Qxg5 {[%clk 0:00:53.6]} 9. g3 {[%clk 0:00:44.5]} 9... Be6 {[%clk 0:00:48.4]} 10. h4 {[%clk 0:00:42.5]} 10... Qd8 {[%clk 0:00:47.9]} 11. O-O {[%clk 0:00:41.5]} 11... Bd6 {[%clk 0:00:47.3]} 12. d3 {[%clk 0:00:40.4]} 12... O-O {[%clk 0:00:47]} 13. Bg5 {[%clk 0:00:36.7]} 13... f6 {[%clk 0:00:45.6]} 14. Be3 {[%clk 0:00:34.8]} 14... Bd7 {[%clk 0:00:45]} 15. Nc3 {[%clk 0:00:31]} 15... Bc6 {[%clk 0:00:44.7]} 16. Nxd5 {[%clk 0:00:29.5]} 16... Bc5 {[%clk 0:00:44.2]} 17. Qe2 {[%clk 0:00:29.2]} 17... Bxd5 {[%clk 0:00:43.1]} 18. Bxc5 {[%clk 0:00:27.7]} 18... Re8 {[%clk 0:00:41.7]} 19. Rac1 {[%clk 0:00:24.6]} 19... Be6 {[%clk 0:00:41.3]} 20. Be3 {[%clk 0:00:22.6]} 20... Bh3 {[%clk 0:00:40.5]} 21. Rfd1 {[%clk 0:00:20.7]} 21... e4 {[%clk 0:00:39.5]} 22. dxe4 {[%clk 0:00:19.1]} 22... Qe7 {[%clk 0:00:39.2]} 23. Rd5 {[%clk 0:00:17.4]} 23... Qxe4 {[%clk 0:00:36.4]} 24. Rd4 {[%clk 0:00:15.8]} 24... Bg4 {[%clk 0:00:35.1]} 25. Qd3 {[%clk 0:00:13.6]} 25... Qf3 {[%clk 0:00:32.9]} 26. Bf4 {[%clk 0:00:11]} 26... Qc6 {[%clk 0:00:25.6]} 27. Rd7 {[%clk 0:00:05.8]} 27... Qxd7 {[%clk 0:00:19.7]} 28. Qxd7 {[%clk 0:00:04]} 28... Bxd7 {[%clk 0:00:19.4]} 29. Rxc7 {[%clk 0:00:03]} 29... Rad8 {[%clk 0:00:19.1]} 30. Be3 {[%clk 0:00:00.4]} 30... Bg4 {[%clk 0:00:18.6]} 0-1

[Event "Live Chess"]
[Site "Chess.com"]
[Date "2011.01.29"]
[Round "-"]
[White "akb23"]
[Black "hipposcottimus"]
[Result "0-1"]
[CurrentPosition "6k1/Q5p1/7p/8/5P2/2P1P1P1/3P2KP/8 w - -"]
[Timezone "UTC"]
[ECO "A00"]
[ECOUrl "https://www.chess.com/openings/Kings-Fianchetto-Opening-1...d5-2.Bg2-e5"]
[UTCDate "2011.01.29"]
[UTCTime "19:46:07"]
[WhiteElo "1532"]
[BlackElo "1569"]
[TimeControl "60"]
[Termination "hipposcottimus won on time"]
[StartTime "19:46:07"]
[EndDate "2011.01.29"]
[EndTime "19:48:22"]
[Link "https://www.chess.com/game/live/92707389"]

1. g3 {[%clk 0:01:00]} 1... d5 {[%clk 0:01:00]} 2. Bg2 {[%clk 0:00:59.7]} 2... e5 {[%clk 0:00:59.8]} 3. c3 {[%clk 0:00:59.6]} 3... c5 {[%clk 0:00:59.5]} 4. Nh3 {[%clk 0:00:58.4]} 4... e4 {[%clk 0:00:59.2]} 5. e3 {[%clk 0:00:57.3]} 5... Bxh3 {[%clk 0:00:58.9]} 6. Bxh3 {[%clk 0:00:56.4]} 6... Nf6 {[%clk 0:00:58.7]} 7. Qb3 {[%clk 0:00:56.1]} 7... c4 {[%clk 0:00:56.1]} 8. Qxb7 {[%clk 0:00:55.2]} 8... Nc6 {[%clk 0:00:55.9]} 9. Qxc6+ {[%clk 0:00:53.9]} 9... Nd7 {[%clk 0:00:51.7]} 10. Bg2 {[%clk 0:00:52.1]} 10... Be7 {[%clk 0:00:50]} 11. f3 {[%clk 0:00:51.3]} 11... Rc8 {[%clk 0:00:49.7]} 12. Qxd5 {[%clk 0:00:48.3]} 12... O-O {[%clk 0:00:49.4]} 13. Qxe4 {[%clk 0:00:47.1]} 13... Nf6 {[%clk 0:00:49.1]} 14. Qf4 {[%clk 0:00:43.2]} 14... Bc5 {[%clk 0:00:47.9]} 15. Bh3 {[%clk 0:00:41.5]} 15... Bd6 {[%clk 0:00:47.3]} 16. Qd4 {[%clk 0:00:38.3]} 16... Rc7 {[%clk 0:00:46.6]} 17. f4 {[%clk 0:00:36.1]} 17... Re7 {[%clk 0:00:45.1]} 18. b3 {[%clk 0:00:34.1]} 18... Ne4 {[%clk 0:00:44.7]} 19. Bb2 {[%clk 0:00:28.9]} 19... f5 {[%clk 0:00:43]} 20. a4 {[%clk 0:00:27.3]} 20... Kh8 {[%clk 0:00:42.5]} 21. Ba3 {[%clk 0:00:26.4]} 21... cxb3 {[%clk 0:00:31]} 22. Bxd6 {[%clk 0:00:24.7]} 22... Nxd6 {[%clk 0:00:30.7]} 23. Na3 {[%clk 0:00:22.9]} 23... b2 {[%clk 0:00:29.1]} 24. Rb1 {[%clk 0:00:21.5]} 24... Rb7 {[%clk 0:00:28.7]} 25. O-O {[%clk 0:00:20.2]} 25... Qa5 {[%clk 0:00:27.7]} 26. Bxf5 {[%clk 0:00:18.9]} 26... Nxf5 {[%clk 0:00:24.7]} 27. Qe4 {[%clk 0:00:17.5]} 27... Rbb8 {[%clk 0:00:23]} 28. Nc4 {[%clk 0:00:16.2]} 28... Qxa4 {[%clk 0:00:21.8]} 29. Rf2 {[%clk 0:00:14.6]} 29... Qc2 {[%clk 0:00:20.9]} 30. Kg2 {[%clk 0:00:13.7]} 30... Qxb1 {[%clk 0:00:20]} 31. Qxb1 {[%clk 0:00:12.8]} 31... a5 {[%clk 0:00:18.1]} 32. Ne5 {[%clk 0:00:11.6]} 32... a4 {[%clk 0:00:17.5]} 33. Nd7 {[%clk 0:00:10.9]} 33... a3 {[%clk 0:00:15.7]} 34. Nxb8 {[%clk 0:00:10.1]} 34... Rxb8 {[%clk 0:00:15.2]} 35. Rf1 {[%clk 0:00:08.2]} 35... a2 {[%clk 0:00:14.6]} 36. Qxa2 {[%clk 0:00:07.5]} 36... Nd6 {[%clk 0:00:10.6]} 37. Rb1 {[%clk 0:00:07]} 37... Nb5 {[%clk 0:00:09.7]} 38. Rxb2 {[%clk 0:00:06.3]} 38... Rb7 {[%clk 0:00:09.3]} 39. Qa5 {[%clk 0:00:04.7]} 39... Rb8 {[%clk 0:00:09.1]} 40. Rxb5 {[%clk 0:00:04]} 40... Re8 {[%clk 0:00:08.6]} 41. Rb6 {[%clk 0:00:02.6]} 41... Rf8 {[%clk 0:00:07.9]} 42. Qa7 {[%clk 0:00:01.9]} 42... Rg8 {[%clk 0:00:07.6]} 43. Rb8 {[%clk 0:00:01.4]} 43... h6 {[%clk 0:00:07.2]} 44. Rxg8+ {[%clk 0:00:00.3]} 44... Kxg8 {[%clk 0:00:07]} 0-1

[Event "Live Chess"]
[Site "Chess.com"]
[Date "2011.01.29"]
[Round "-"]
[White "hipposcottimus"]
[Black "akb23"]
[Result "1/2-1/2"]
[CurrentPosition "8/8/3k4/8/4KR2/8/8/8 w - -"]
[Timezone "UTC"]
[ECO "B06"]
[ECOUrl "https://www.chess.com/openings/Modern-Defense-Gurgenidze-Variation"]
[UTCDate "2011.01.29"]
[UTCTime "19:43:19"]
[WhiteElo "1562"]
[BlackElo "1539"]
[TimeControl "60"]
[Termination "Game drawn by insufficient material"]
[StartTime "19:43:19"]
[EndDate "2011.01.29"]
[EndTime "19:45:52"]
[Link "https://www.chess.com/game/live/92706549"]

1. e4 {[%clk 0:01:00]} 1... c6 {[%clk 0:01:00]} 2. d4 {[%clk 0:00:58.6]} 2... g6 {[%clk 0:00:59.4]} 3. c4 {[%clk 0:00:56.8]} 3... Bg7 {[%clk 0:00:59.3]} 4. e5 {[%clk 0:00:56.4]} 4... Na6 {[%clk 0:00:59.2]} 5. Nf3 {[%clk 0:00:55.5]} 5... e6 {[%clk 0:00:58.7]} 6. c5 {[%clk 0:00:54.8]} 6... Ne7 {[%clk 0:00:56.3]} 7. Bxa6 {[%clk 0:00:53.2]} 7... bxa6 {[%clk 0:00:55.2]} 8. Nc3 {[%clk 0:00:53]} 8... Nf5 {[%clk 0:00:54.4]} 9. O-O {[%clk 0:00:52.7]} 9... a5 {[%clk 0:00:53.5]} 10. Re1 {[%clk 0:00:52.5]} 10... Ba6 {[%clk 0:00:52.6]} 11. b3 {[%clk 0:00:52.3]} 11... O-O {[%clk 0:00:50.4]} 12. Bg5 {[%clk 0:00:51.9]} 12... Qe8 {[%clk 0:00:48.9]} 13. Bf6 {[%clk 0:00:50.9]} 13... Bxf6 {[%clk 0:00:48.1]} 14. exf6 {[%clk 0:00:50.4]} 14... h5 {[%clk 0:00:46.8]} 15. Ne5 {[%clk 0:00:49.7]} 15... Qd8 {[%clk 0:00:45.8]} 16. f4 {[%clk 0:00:48.7]} 16... Qxf6 {[%clk 0:00:44.7]} 17. Nxd7 {[%clk 0:00:40.4]} 17... Qe7 {[%clk 0:00:42.8]} 18. Nxf8 {[%clk 0:00:40.1]} 18... Qxf8 {[%clk 0:00:42.4]} 19. Qe2 {[%clk 0:00:38.1]} 19... Nxd4 {[%clk 0:00:40.8]} 20. Qe5 {[%clk 0:00:35.7]} 20... Nc2 {[%clk 0:00:39.4]} 21. Ne4 {[%clk 0:00:30.6]} 21... Nxe1 {[%clk 0:00:38]} 22. Nf6+ {[%clk 0:00:30.3]} 22... Kg7 {[%clk 0:00:33.3]} 23. Nd7+ {[%clk 0:00:30]} 23... Kg8 {[%clk 0:00:30.6]} 24. Nxf8 {[%clk 0:00:29.6]} 24... Kxf8 {[%clk 0:00:30.5]} 25. Qh8+ {[%clk 0:00:28.4]} 25... Ke7 {[%clk 0:00:29.1]} 26. Qxa8 {[%clk 0:00:28.1]} 26... Kf6 {[%clk 0:00:29]} 27. Rxe1 {[%clk 0:00:27.3]} 27... Kf5 {[%clk 0:00:28.1]} 28. Qxa7 {[%clk 0:00:26.6]} 28... Bc4 {[%clk 0:00:26.2]} 29. Qb6 {[%clk 0:00:25.3]} 29... Bd5 {[%clk 0:00:24.1]} 30. Qxa5 {[%clk 0:00:24.2]} 30... Kf6 {[%clk 0:00:23.4]} 31. Qd2 {[%clk 0:00:23.8]} 31... Ke7 {[%clk 0:00:22.3]} 32. g4 {[%clk 0:00:23]} 32... hxg4 {[%clk 0:00:21]} 33. Qe2 {[%clk 0:00:22.7]} 33... g3 {[%clk 0:00:20.1]} 34. hxg3 {[%clk 0:00:21.2]} 34... Kf6 {[%clk 0:00:18.3]} 35. f5 {[%clk 0:00:20.8]} 35... gxf5 {[%clk 0:00:17.2]} 36. g4 {[%clk 0:00:20.5]} 36... fxg4 {[%clk 0:00:15.8]} 37. Qxg4 {[%clk 0:00:20.2]} 37... Ke7 {[%clk 0:00:15.7]} 38. Rf1 {[%clk 0:00:18.4]} 38... Kd8 {[%clk 0:00:14.8]} 39. Qg5+ {[%clk 0:00:17.7]} 39... Kc7 {[%clk 0:00:14.3]} 40. Qf6 {[%clk 0:00:16.9]} 40... Kb7 {[%clk 0:00:14.2]} 41. Qxf7+ {[%clk 0:00:16.2]} 41... Ka6 {[%clk 0:00:14.1]} 42. Qe7 {[%clk 0:00:15.7]} 42... Kb5 {[%clk 0:00:14]} 43. Qd6 {[%clk 0:00:15.2]} 43... Kb4 {[%clk 0:00:13]} 44. a3+ {[%clk 0:00:14.7]} 44... Kxa3 {[%clk 0:00:12.1]} 45. Ra1+ {[%clk 0:00:13.9]} 45... Kb4 {[%clk 0:00:11.7]} 46. Qxd5 {[%clk 0:00:12.8]} 46... exd5 {[%clk 0:00:10.4]} 47. Ra4+ {[%clk 0:00:12.5]} 47... Kxc5 {[%clk 0:00:09.8]} 48. Ra5+ {[%clk 0:00:11.3]} 48... Kb4 {[%clk 0:00:09]} 49. Ra6 {[%clk 0:00:09.7]} 49... Kxb3 {[%clk 0:00:08.1]} 50. Rxc6 {[%clk 0:00:09.2]} 50... Kb4 {[%clk 0:00:06.8]} 51. Rd6 {[%clk 0:00:08.8]} 51... Kc4 {[%clk 0:00:06.3]} 52. Rd8 {[%clk 0:00:08.3]} 52... d4 {[%clk 0:00:05.8]} 53. Kg2 {[%clk 0:00:08.1]} 53... d3 {[%clk 0:00:04.8]} 54. Kf2 {[%clk 0:00:07.7]} 54... Kc3 {[%clk 0:00:04.7]} 55. Ke3 {[%clk 0:00:06.5]} 55... d2 {[%clk 0:00:04.6]} 56. Rxd2 {[%clk 0:00:05]} 56... Kb4 {[%clk 0:00:03.8]} 57. Rd3 {[%clk 0:00:04.6]} 57... Kc5 {[%clk 0:00:03.7]} 58. Rd4 {[%clk 0:00:03.6]} 58... Kb5 {[%clk 0:00:02.7]} 59. Kd3 {[%clk 0:00:03.1]} 59... Kc5 {[%clk 0:00:02.2]} 60. Re4 {[%clk 0:00:02.8]} 60... Kb5 {[%clk 0:00:01.7]} 61. Rf4 {[%clk 0:00:02.5]} 61... Kc5 {[%clk 0:00:01.6]} 62. Rf5+ {[%clk 0:00:02.1]} 62... Kb4 {[%clk 0:00:00.8]} 63. Rf4+ {[%clk 0:00:01.8]} 63... Kb3 {[%clk 0:00:00.7]} 64. Rf3 {[%clk 0:00:00.9]} 64... Kb4 {[%clk 0:00:00.6]} 65. Ke4 {[%clk 0:00:00.6]} 65... Kc5 {[%clk 0:00:00.5]} 66. Rf4 {[%clk 0:00:00.2]} 66... Kd6 {[%clk 0:00:00.4]} 1/2-1/2

[Event "Live Chess"]
[Site "Chess.com"]
[Date "2011.01.29"]
[Round "-"]
[White "hipposcottimus"]
[Black "sham1308"]
[Result "1-0"]
[CurrentPosition "4R1kr/p2p1ppp/3B4/7n/r7/2P2Q2/PP4PP/6K1 b - -"]
[Timezone "UTC"]
[ECO "B00"]
[ECOUrl "https://www.chess.com/openings/Kings-Pawn-Opening"]
[UTCDate "2011.01.29"]
[UTCTime "19:41:02"]
[WhiteElo "1563"]
[BlackElo "1479"]
[TimeControl "60"]
[Termination "hipposcottimus won by checkmate"]
[StartTime "19:41:02"]
[EndDate "2011.01.29"]
[EndTime "19:42:57"]
[Link "https://www.chess.com/game/live/92705870"]

1. e4 {[%clk 0:01:00]} 1... b5 {[%clk 0:01:00]} 2. d4 {[%clk 0:00:58.8]} 2... c5 {[%clk 0:00:59.5]} 3. Bxb5 {[%clk 0:00:56.8]} 3... cxd4 {[%clk 0:00:58.4]} 4. Qxd4 {[%clk 0:00:56.5]} 4... Ba6 {[%clk 0:00:57.1]} 5. Bxa6 {[%clk 0:00:55.4]} 5... Nxa6 {[%clk 0:00:56]} 6. Nc3 {[%clk 0:00:55.2]} 6... Rc8 {[%clk 0:00:54.9]} 7. Nf3 {[%clk 0:00:49.3]} 7... Nc5 {[%clk 0:00:54]} 8. O-O {[%clk 0:00:47.9]} 8... Qb6 {[%clk 0:00:52.7]} 9. Nd5 {[%clk 0:00:45.4]} 9... Qg6 {[%clk 0:00:49.9]} 10. Ne5 {[%clk 0:00:42]} 10... Qe6 {[%clk 0:00:44.9]} 11. Nf4 {[%clk 0:00:37.7]} 11... Qd6 {[%clk 0:00:42.6]} 12. Nd5 {[%clk 0:00:33.3]} 12... e6 {[%clk 0:00:39.9]} 13. Nc4 {[%clk 0:00:28.5]} 13... exd5 {[%clk 0:00:37.2]} 14. Nxd6+ {[%clk 0:00:27.2]} 14... Bxd6 {[%clk 0:00:36.1]} 15. Qxd5 {[%clk 0:00:26.3]} 15... Rc6 {[%clk 0:00:34]} 16. f4 {[%clk 0:00:20.6]} 16... Ne7 {[%clk 0:00:33]} 17. Qd1 {[%clk 0:00:18]} 17... Bxf4 {[%clk 0:00:32]} 18. Bxf4 {[%clk 0:00:16.2]} 18... Nxe4 {[%clk 0:00:30]} 19. Qf3 {[%clk 0:00:15.3]} 19... Rc4 {[%clk 0:00:27.5]} 20. c3 {[%clk 0:00:14.4]} 20... Ra4 {[%clk 0:00:24.2]} 21. Rae1 {[%clk 0:00:14]} 21... Nf6 {[%clk 0:00:19.9]} 22. Bc7 {[%clk 0:00:11.6]} 22... Nh5 {[%clk 0:00:17.5]} 23. Rxe7+ {[%clk 0:00:10.7]} 23... Kxe7 {[%clk 0:00:13.7]} 24. Re1+ {[%clk 0:00:10.4]} 24... Kf8 {[%clk 0:00:12.9]} 25. Bd6+ {[%clk 0:00:09.3]} 25... Kg8 {[%clk 0:00:10.9]} 26. Re8# {[%clk 0:00:07.8]} 1-0

[Event "Live Chess"]
[Site "Chess.com"]
[Date "2011.01.29"]
[Round "-"]
[White "sham1308"]
[Black "hipposcottimus"]
[Result "0-1"]
[CurrentPosition "1r4k1/p6p/6p1/3q4/4N3/3K4/P3N3/R5R1 w - -"]
[Timezone "UTC"]
[ECO "C20"]
[ECOUrl "https://www.chess.com/openings/Kings-Pawn-Opening-MacLeod-Attack"]
[UTCDate "2011.01.29"]
[UTCTime "19:38:44"]
[WhiteElo "1485"]
[BlackElo "1557"]
[TimeControl "60"]
[Termination "hipposcottimus won on time"]
[StartTime "19:38:44"]
[EndDate "2011.01.29"]
[EndTime "19:40:45"]
[Link "https://www.chess.com/game/live/92705108"]

1. e4 {[%clk 0:01:00]} 1... e5 {[%clk 0:01:00]} 2. c3 {[%clk 0:00:59]} 2... Nc6 {[%clk 0:00:59.6]} 3. b4 {[%clk 0:00:58.4]} 3... Nf6 {[%clk 0:00:58.4]} 4. b5 {[%clk 0:00:57.7]} 4... Ne7 {[%clk 0:00:56.7]} 5. f3 {[%clk 0:00:57.1]} 5... c6 {[%clk 0:00:56.4]} 6. g4 {[%clk 0:00:55.9]} 6... cxb5 {[%clk 0:00:54.5]} 7. g5 {[%clk 0:00:54.9]} 7... Nh5 {[%clk 0:00:53.2]} 8. Bxb5 {[%clk 0:00:53.7]} 8... Nf4 {[%clk 0:00:51.8]} 9. d3 {[%clk 0:00:52.5]} 9... Nc6 {[%clk 0:00:47.9]} 10. Bxf4 {[%clk 0:00:49.5]} 10... exf4 {[%clk 0:00:45.9]} 11. Bxc6 {[%clk 0:00:48.8]} 11... bxc6 {[%clk 0:00:44.4]} 12. Nh3 {[%clk 0:00:47.3]} 12... Be7 {[%clk 0:00:43.4]} 13. Nxf4 {[%clk 0:00:45.5]} 13... d6 {[%clk 0:00:43.1]} 14. h4 {[%clk 0:00:43.6]} 14... O-O {[%clk 0:00:42.6]} 15. Nh5 {[%clk 0:00:42.1]} 15... g6 {[%clk 0:00:41.4]} 16. Ng3 {[%clk 0:00:39.9]} 16... f6 {[%clk 0:00:40.3]} 17. f4 {[%clk 0:00:38.7]} 17... fxg5 {[%clk 0:00:38.5]} 18. hxg5 {[%clk 0:00:38]} 18... Bxg5 {[%clk 0:00:37.7]} 19. fxg5 {[%clk 0:00:34.9]} 19... Qxg5 {[%clk 0:00:37.4]} 20. Rg1 {[%clk 0:00:32.2]} 20... Qe3+ {[%clk 0:00:36]} 21. Ne2 {[%clk 0:00:29.8]} 21... Qf2+ {[%clk 0:00:33.7]} 22. Kd2 {[%clk 0:00:27.3]} 22... Ba6 {[%clk 0:00:29.7]} 23. c4 {[%clk 0:00:25.6]} 23... d5 {[%clk 0:00:28.2]} 24. exd5 {[%clk 0:00:23.2]} 24... cxd5 {[%clk 0:00:27.2]} 25. Nc3 {[%clk 0:00:22.3]} 25... dxc4 {[%clk 0:00:25.5]} 26. Ne4 {[%clk 0:00:20.7]} 26... c3+ {[%clk 0:00:24.1]} 27. Kxc3 {[%clk 0:00:18.4]} 27... Rac8+ {[%clk 0:00:23.3]} 28. Kb3 {[%clk 0:00:13.8]} 28... Qf7+ {[%clk 0:00:21.7]} 29. Kb2 {[%clk 0:00:09.6]} 29... Rb8+ {[%clk 0:00:21.3]} 30. Kc1 {[%clk 0:00:08.2]} 30... Rfc8+ {[%clk 0:00:20.7]} 31. Kd2 {[%clk 0:00:05.4]} 31... Rd8 {[%clk 0:00:18.7]} 32. Qb3 {[%clk 0:00:03.7]} 32... Rxd3+ {[%clk 0:00:17.2]} 33. Qxd3 {[%clk 0:00:02]} 33... Bxd3 {[%clk 0:00:17]} 34. Kxd3 {[%clk 0:00:01.2]} 34... Qd5+ {[%clk 0:00:15.7]} 0-1

[Event "Live Chess"]
[Site "Chess.com"]
[Date "2011.01.29"]
[Round "-"]
[White "hipposcottimus"]
[Black "WhatMove"]
[Result "1-0"]
[CurrentPosition "4r3/p1p2k1p/2p3p1/4PpR1/2PK4/8/PP5P/8 b - -"]
[Timezone "UTC"]
[ECO "A06"]
[ECOUrl "https://www.chess.com/openings/Reti-Opening-Tennison-Gambit"]
[UTCDate "2011.01.29"]
[UTCTime "19:34:59"]
[WhiteElo "1548"]
[BlackElo "1703"]
[TimeControl "60"]
[Termination "hipposcottimus won on time"]
[StartTime "19:34:59"]
[EndDate "2011.01.29"]
[EndTime "19:37:00"]
[Link "https://www.chess.com/game/live/92703973"]

1. e4 {[%clk 0:01:00]} 1... d5 {[%clk 0:01:00]} 2. Nf3 {[%clk 0:00:59.7]} 2... dxe4 {[%clk 0:00:58.4]} 3. Ng5 {[%clk 0:00:59.4]} 3... Bf5 {[%clk 0:00:55.6]} 4. f3 {[%clk 0:00:58.1]} 4... e5 {[%clk 0:00:53.9]} 5. fxe4 {[%clk 0:00:57.2]} 5... Qxg5 {[%clk 0:00:51.1]} 6. exf5 {[%clk 0:00:56.8]} 6... Qxf5 {[%clk 0:00:47.7]} 7. d3 {[%clk 0:00:55.6]} 7... Bc5 {[%clk 0:00:45.7]} 8. Be2 {[%clk 0:00:52.6]} 8... Qf2+ {[%clk 0:00:42.7]} 9. Kd2 {[%clk 0:00:52.3]} 9... Be3+ {[%clk 0:00:40]} 10. Kc3 {[%clk 0:00:51.9]} 10... Nc6 {[%clk 0:00:38.1]} 11. Rf1 {[%clk 0:00:50.8]} 11... Bd4+ {[%clk 0:00:36.7]} 12. Kb3 {[%clk 0:00:49.7]} 12... Qxg2 {[%clk 0:00:32.5]} 13. Bf3 {[%clk 0:00:45.4]} 13... Qh3 {[%clk 0:00:29.2]} 14. Bxc6+ {[%clk 0:00:44.7]} 14... bxc6 {[%clk 0:00:26.7]} 15. Qf3 {[%clk 0:00:43]} 15... Qe6+ {[%clk 0:00:26.6]} 16. c4 {[%clk 0:00:40.5]} 16... Rb8+ {[%clk 0:00:22.6]} 17. Kc2 {[%clk 0:00:40]} 17... Nf6 {[%clk 0:00:19.9]} 18. Bg5 {[%clk 0:00:37.9]} 18... O-O {[%clk 0:00:18.1]} 19. Nc3 {[%clk 0:00:36.9]} 19... e4 {[%clk 0:00:15.9]} 20. Rfe1 {[%clk 0:00:34.6]} 20... Bxc3 {[%clk 0:00:14.7]} 21. Kxc3 {[%clk 0:00:31.4]} 21... Qe5+ {[%clk 0:00:13.3]} 22. d4 {[%clk 0:00:29.4]} 22... Qxg5 {[%clk 0:00:13.2]} 23. Qf2 {[%clk 0:00:26.4]} 23... Qh5 {[%clk 0:00:09.4]} 24. Rg1 {[%clk 0:00:25.5]} 24... Qh3+ {[%clk 0:00:08]} 25. Qg3 {[%clk 0:00:24.3]} 25... Qxg3+ {[%clk 0:00:05.9]} 26. Rxg3 {[%clk 0:00:24]} 26... e3 {[%clk 0:00:05.1]} 27. Rag1 {[%clk 0:00:23.3]} 27... g6 {[%clk 0:00:03.1]} 28. Kd3 {[%clk 0:00:21.8]} 28... Ne4 {[%clk 0:00:03]} 29. Rxe3 {[%clk 0:00:20.3]} 29... Rbe8 {[%clk 0:00:02.9]} 30. Rxe4 {[%clk 0:00:19.1]} 30... f5 {[%clk 0:00:01.6]} 31. Re5 {[%clk 0:00:17.8]} 31... Rxe5 {[%clk 0:00:00.4]} 32. dxe5 {[%clk 0:00:17.5]} 32... Re8 {[%clk 0:00:00.3]} 33. Kd4 {[%clk 0:00:17.1]} 33... Kf7 {[%clk 0:00:00.1]} 34. Rg5 {[%clk 0:00:16.3]} 1-0

[Event "Live Chess"]
[Site "Chess.com"]
[Date "2011.01.28"]
[Round "-"]
[White "hipposcottimus"]
[Black "AmadouCeesay"]
[Result "0-1"]
[CurrentPosition "rn3rk1/pb4pp/1p3n2/2P5/N1Pp4/P2Pp3/2Q1B1qP/R1B2RK1 w - -"]
[Timezone "UTC"]
[ECO "B00"]
[ECOUrl "https://www.chess.com/openings/Owens-Defense"]
[UTCDate "2011.01.28"]
[UTCTime "23:47:01"]
[WhiteElo "1548"]
[BlackElo "1570"]
[TimeControl "60"]
[Termination "AmadouCeesay won by checkmate"]
[StartTime "23:47:01"]
[EndDate "2011.01.28"]
[EndTime "23:48:14"]
[Link "https://www.chess.com/game/live/92431126"]

1. e4 {[%clk 0:01:00]} 1... b6 {[%clk 0:01:00]} 2. c4 {[%clk 0:00:58.9]} 2... Bb7 {[%clk 0:00:59.6]} 3. f3 {[%clk 0:00:57.8]} 3... e5 {[%clk 0:00:58.6]} 4. Ne2 {[%clk 0:00:54.1]} 4... Bc5 {[%clk 0:00:57]} 5. f4 {[%clk 0:00:53.7]} 5... f6 {[%clk 0:00:54.8]} 6. fxe5 {[%clk 0:00:52.1]} 6... fxe5 {[%clk 0:00:53.8]} 7. Nbc3 {[%clk 0:00:51.8]} 7... Bd4 {[%clk 0:00:52.7]} 8. Na4 {[%clk 0:00:51]} 8... Nf6 {[%clk 0:00:51.2]} 9. Nxd4 {[%clk 0:00:50.3]} 9... exd4 {[%clk 0:00:49.3]} 10. Qe2 {[%clk 0:00:49.8]} 10... Qe7 {[%clk 0:00:47.5]} 11. d3 {[%clk 0:00:49.1]} 11... O-O {[%clk 0:00:46.1]} 12. Qd2 {[%clk 0:00:48]} 12... c6 {[%clk 0:00:44.7]} 13. Be2 {[%clk 0:00:47.7]} 13... d5 {[%clk 0:00:43.3]} 14. O-O {[%clk 0:00:41.6]} 14... dxe4 {[%clk 0:00:41.7]} 15. b3 {[%clk 0:00:31.1]} 15... e3 {[%clk 0:00:39.5]} 16. Qc2 {[%clk 0:00:30.7]} 16... c5 {[%clk 0:00:38]} 17. a3 {[%clk 0:00:28.6]} 17... Qd7 {[%clk 0:00:35]} 18. b4 {[%clk 0:00:27.4]} 18... Qc6 {[%clk 0:00:33.7]} 19. bxc5 {[%clk 0:00:24.7]} 19... Qxg2# {[%clk 0:00:32.1]} 0-1